Cogmind - Beta 16.1 @@@ ROGUE MODE // 2026.02.18 @ 23:57:06 Player: alice_fexa Result: Destroyed by 8W-J1S(R) with Subdweller Laser Performance ------------- Evolutions (0) 0 Regions Visited (3) 600 Robots Destroyed (28) 140 Value Destroyed (613) 613 Prototype IDs (3) 60 Alien Tech Used (0) 0 Bonus (0) 0 TOTAL SCORE: 1413 Bonus ------- None Cogmind --------- Core Integrity 0/250 Matter 263/300 Energy 197/250 System Corruption 1% Temperature Cool (6) Movement Treading (160) Location -10/Subcaves Parts ------- > --- POWER (1) -------- Ion Engine > --- PROPULSION (2) --- Light Treads Light Treads > --- UTILITY (2) ------ Improved Heat Sink Large Storage Unit > --- WEAPON (2) ------- Particle Gun (fused) Subdweller Beam Cannon > --- INVENTORY (15) --- Ion Engine Improved Heat Sink Improved Heat Sink Experimental Sensor Array Seismic Detector Particle Gun Particle Gun Particle Gun Subdweller Laser Assault Rifle Assault Rifle Battle Cannon Plasma Cutter Peak State ------------ > --- POWER ------------ Ion Engine > --- PROPULSION ------- Light Treads Light Treads > --- UTILITY ---------- Large Storage Unit Experimental Sensor Array > --- WEAPON ----------- Particle Gun Particle Gun > --- INVENTORY -------- Ion Engine Ion Engine Light Treads Light Treads Improved Heat Sink Improved Heat Sink Seismic Detector EM Pulse Gun Particle Gun Particle Gun Particle Gun Assault Rifle Assault Rifle Datajack Plasma Cutter [Rating: 19] Favorites ----------- Power Ion Engine Engine Ion Engine Propulsion Light Treads Treads Light Treads Utility Improved Heat Sink Device Improved Heat Sink Storage Large Storage Unit Weapon Particle Gun Energy Gun Particle Gun Energy Cannon Beam Cannon Ballistic Gun Assault Rifle Special Melee Weapon Datajack Build | -11 -10 -10 -10 ------- Run | Yrd Mat Min Sub Slots Evolved . | . . . . Power . | . . . . Propulsion . | . . . . Utility . | . . . . Weapon . | . . . . Parts Attached 27 | 6 12 3 6 Power 5 | 1 2 1 1 Engine 5 | 1 2 1 1 Core . | . . . . Reactor . | . . . . Propulsion 5 | 2 1 . 2 Treads 5 | 2 1 . 2 Leg . | . . . . Wheel . | . . . . Hover . | . . . . Flight . | . . . . Utility 7 | 1 3 1 2 Device 5 | . 2 1 2 Storage 2 | 1 1 . . Processor . | . . . . Hackware . | . . . . Protection . | . . . . Artifact . | . . . . Weapon 10 | 2 6 1 1 Energy Gun 6 | 1 5 . . Energy Cannon 2 | . 1 . 1 Ballistic Gun 1 | 1 . . . Ballistic Cannon . | . . . . Launcher . | . . . . Special Weapon . | . . . . Impact Weapon . | . . . . Slashing Weapon . | . . . . Piercing Weapon . | . . . . Special Melee Weapon 1 | . . 1 . Unidentified Prototypes 1 | . . 1 . Parts Lost 5 | . 1 1 3 Power . | . . . . Propulsion 2 | . . . 2 Utility 1 | . 1 . . Weapon 2 | . . 1 1 Highest Loss Streak 1 | . 1 1 1 To Critical Strikes . | . . . . Average Backups 11 | 2 9 14 14 Power 1 | . 1 2 1 Propulsion 2 | 1 2 2 1 Utility 2 | . 1 2 3 Weapon 5 | . 4 6 6 Tool/Special . | . . . . Unused Backups 19 | . 8 1 10 Power 2 | . 1 . 1 Propulsion 3 | . 2 1 . Utility 1 | . . . 1 Weapon 12 | . 5 . 7 Tool/Special 1 | . . . 1 Average Slot Usage (%) 99 | . 98 100 99 Engine 14 | . 14 14 14 Treads 27 | . 27 28 27 Device 13 | . 13 14 14 Storage 14 | . 14 14 14 Energy Gun 22 | . 19 25 27 Energy Cannon 4 | . 8 . . Peak Build Rating 19 | 6 13 19 14 Average Rating 11 | 5 10 13 12 On Entrance 8 | . 6 13 13 Avg Prop Armor Cover (%) . | . . . . Naked Turns . | . . . . Heaviest Build 32 | 14 32 32 32 Greatest Support 40 | 40 40 40 40 Greatest Overweight (x) . | . . . . Average Overweight (x) . | . . . . Largest Inventory Capacity 15 | 8 15 15 15 Average Capacity 12 | 7 10 15 15 Most Carried 15 | 4 15 15 15 Average Carried 11 | 3 9 14 14 Final Capacity 15 | 8 15 15 15 Final Carried 15 | 4 15 14 13 Class Distribution -------------------- 84% | Mutant 15% | Scavenger-Mutant Dominant Class ---------------- Mutant | -10/Materials Mutant | -10/Mines Mutant | -10/Subcaves Resources | -11 -10 -10 -10 ----------- Run | Yrd Mat Min Sub Matter Collected 638 | 275 180 50 133 Remotely . | . . . . Salvage Created 955 | 153 620 . 182 Parts 50 | 13 32 . 5 Haulers Intercepted 1 | . 1 . . Recyclers Shooed 1 | . 1 . . Parts Field Recycled . | . . . . Retrieved Matter . | . . . . Parts Self-Destructed 3 | . . . 3 Prevented . | . . . . Parts Restored . | . . . . Kills | -11 -10 -10 -10 ------- Run | Yrd Mat Min Sub Combat Hostiles Destroyed 18 | . 14 . 4 Guns 16 | . 12 . 4 Cannons 2 | . 2 . . Classes Destroyed 8 | 2 5 . 1 Worker 1 | . 1 . . Tunneler 3 | 3 . . . Hauler 1 | . 1 . . Recycler 2 | 1 1 . . Watcher 3 | . 3 . . Swarmer 6 | . 6 . . Grunt 10 | . 8 . 2 Subdweller 2 | . . . 2 Best Kill Streak 8 | 4 8 . 2 Combat Bots Only 7 | . 7 . 2 Max Kills in Single Turn 1 | 1 1 . 1 Gunslinging . | . . . . Exploded . | . . . . Melee . | . . . . Uniques/NPCs Destroyed . | . . . . Combat | -11 -10 -10 -10 -------- Run | Yrd Mat Min Sub Hostile Shots Fired 117 | . 90 2 25 Missed 36 | . 30 . 6 Hits 81 | . 60 2 19 Melee 2 | . . 2 . Projectile 79 | . 60 . 19 AOE 4 | . . . 4 Critical Strikes 1 | . 1 . . Damage Taken 1248 | . 634 56 558 Core 264 | . 141 . 123 Absorbed by Shields . | . . . . Regen/Repaired (Parts) 93 | . 93 . . Core Remaining (%) 100 | 100 . . . Volleys Fired 97 | 5 74 2 16 Largest 2 | 2 2 2 2 Hottest 145 | 70 130 130 145 Shots Fired 192 | 10 146 4 32 Gun 157 | 10 114 4 29 Cannon 35 | . 32 . 3 Launcher . | . . . . Special . | . . . . Kinetic 13 | 5 8 . . Thermal 179 | 5 138 4 32 Explosive . | . . . . Electromagnetic . | . . . . Robot Hit Streak 27 | 2 14 7 27 Robot Miss Streak 7 | 3 7 1 4 Penetration Max . | . . . . Secondary Targets 3 | . 2 . 1 Max Gunslinging Chain 1 | . 1 . 1 Shots Hit Robots 126 | 5 90 4 27 Core Hits 44 | 5 32 . 7 Critical Kills . | . . . . Critical Parts Destroyed . | . . . . Critical Strikes 4 | 1 2 . 1 Burn 4 | 1 2 . 1 Melee Attacks 3 | . . 3 . Impact . | . . . . Slashing . | . . . . Piercing . | . . . . Sneak Attacks . | . . . . Combat Hostiles . | . . . . Follow-up Attacks . | . . . . Damage Inflicted 1861 | 108 1248 42 463 Guns 1461 | 108 932 42 379 Cannons 398 | . 314 . 84 Explosions . | . . . . Melee . | . . . . Ramming 2 | . 2 . . Kinetic 90 | 44 46 . . Thermal 1769 | 64 1200 42 463 Explosive . | . . . . Electromagnetic . | . . . . Impact . | . . . . Slashing . | . . . . Piercing . | . . . . Highest Corruption 1 | . . 1 1 Average Corruption 1 | . . 1 1 Corruption Purged . | . . . . Corruption Blocked . | . . . . Effects 5 | . . 2 3 Message Errors 1 | . . 1 . Heat Flow Errors 2 | . . . 2 Parts Fused 1 | . . 1 . Alerts 1 | . . . 1 Overload Shots . | . . . . Overflow Damage . | . . . . Projectiles . | . . . . Explosions . | . . . . Melee . | . . . . Knockbacks . | . . . . Impact . | . . . . Kinetic . | . . . . Secondary . | . . . . Self-Inflicted Damage . | . . . . Shots . | . . . . Rammed 2 | . 2 . . Targets Rammed 2 | . 2 . . Kicked . | . . . . Crushed . | . . . . Highest Temperature 176 | 36 171 27 176 Average Temperature 39 | 16 39 18 89 Received Heat Transfer 330 | . 249 . 81 Siege Activations . | . . . . Martial Activations . | . . . . Shielding Activations . | . . . . Robots Disrupted . | . . . . Combat Hostiles . | . . . . Robots Corrupted . | . . . . Combat Hostiles . | . . . . Parts Fried . | . . . . Impact Corruptions . | . . . . Robots Melted . | . . . . Combat Hostiles . | . . . . Parts Melted 11 | 1 8 . 2 Heat Transferred 4486 | 259 3043 111 1073 Parts Sabotaged . | . . . . Parts Stolen . | . . . . Parts Stripped . | . . . . Power Chain Reactions . | . . . . Alert | -11 -10 -10 -10 ------- Run | Yrd Mat Min Sub Maximum Alert Level . | . . . . Low Security (%) 100 | 100 100 100 . Level 1 . | . . . . Level 2 . | . . . . Level 3 . | . . . . Level 4 . | . . . . Level 5 . | . . . . High Security . | . . . . Max Security . | . . . . Peak Influence 160 | 10 160 6 . Initial 6 | . . 6 . Average 33 | 2 54 . . Influence Increases 533 | 20 463 . 50 Destroy 0b10 Robot/C 320 | . 280 . 40 Destroy 0b10 Robot/NC 50 | 20 30 . . Destroy Leader 68 | . 58 . 10 Successful Hack 17 | . 17 . . Disable Machine 15 | . 15 . . Destroy Structure 3 | . 3 . . Lose Combat Pursuer 60 | . 60 . . Influence Decreases 533 | 20 445 18 50 Entered New Map 12 | . . 12 . Time Decay 511 | 20 435 6 50 Lost Part 10 | . 10 . . Squads Dispatched 1 | . 1 . . Investigation . | . . . . Extermination . | . . . . Reinforcement 1 | . 1 . . Assault . | . . . . Garrison . | . . . . Intercept . | . . . . Searches Triggered . | . . . . Construction Impeded . | . . . . Haulers Reinforced . | . . . . Active Scanning Responses . | . . . . Cargo Convoy Interrupts . | . . . . Stealth | -11 -10 -10 -10 --------- Run | Yrd Mat Min Sub Distress Signals 1 | . 1 . . Communications Jammed . | . . . . Distress Signals . | . . . . Times Spotted 41 | . 33 2 6 Peak Tracking Total 5 | . 5 1 2 Tactical Retreats 3 | . 3 . . Traps | -11 -10 -10 -10 ------- Run | Yrd Mat Min Sub Traps Triggered 2 | . 1 . 1 Indirectly . | . . . . Trap Hack Attempts . | . . . . Triggered . | . . . . Disarmed . | . . . . Reprogrammed . | . . . . Reused . | . . . . Traps Extracted . | . . . . Installed . | . . . . Triggered . | . . . . Machines | -11 -10 -10 -10 ---------- Run | Yrd Mat Min Sub Machines Disabled 1 | . 1 . . Max in Single Turn 1 | . 1 . . Machines Repaired . | . . . . Machines Dismantled . | . . . . Machines Sabotaged . | . . . . Overloaded Fab Kills . | . . . . Hacking | -11 -10 -10 -10 --------- Run | Yrd Mat Min Sub Machines Accessed 9 | . 9 . . Terminals 6 | . 6 . . Fabricators . | . . . . Repair Stations 1 | . 1 . . Recycling Units 2 | . 2 . . Scanalyzers . | . . . . Garrison Access . | . . . . Total Hacks 25 | . 25 . . Successful 14 | . 14 . . Failed 11 | . 11 . . Catastrophic 1 | . 1 . . Database Lockouts . | . . . . Manual 17 | . 17 . . Terminals 19 | . 19 . . Fabricators . | . . . . Repair Stations 2 | . 2 . . Recycling Units 4 | . 4 . . Scanalyzers . | . . . . Garrison Access . | . . . . Terminal Hacks 4 | . 4 . . Part Schematic 1 | . 1 . . Prototype ID Bank 1 | . 1 . . Locate Traps 2 | . 2 . . Fabricator Hacks . | . . . . Repair Station Hacks 2 | . 2 . . Scan Component 1 | . 1 . . Repair 1 | . 1 . . Recycling Unit Hacks 2 | . 2 . . Retrieve Components 2 | . 2 . . Scanalyzer . | . . . . Garrison Access Hacks . | . . . . Unauthorized Hacks 6 | . 6 . . Terminals 6 | . 6 . . Botnet 1 | . 1 . . Skim 5 | . 5 . . Fabricators . | . . . . Repair Stations . | . . . . Recycling Units . | . . . . Scanalyzers . | . . . . Garrison Access . | . . . . Data Cores Recovered . | . . . . Used . | . . . . Hacking Detections 7 | . 7 . . Full Trace Events . | . . . . Feedback Events . | . . . . Feedback Blocked . | . . . . Robot Schematics Acquired . | . . . . Robots Built . | . . . . Authchips . | . . . . Time . | . . . . Total Robot Build Rating . | . . . . Part Schematics Acquired 1 | . 1 . . Parts Built . | . . . . Authchips . | . . . . Time . | . . . . Total Part Build Rating . | . . . . Part Studies Acquired . | . . . . Parts Repaired 1 | . 1 . . Time 26 | . 26 . . Parts Recycled . | . . . . Recycled Matter . | . . . . Retrieved Matter . | . . . . Retrieved Components 5 | . 5 . . Parts Scanalyzed . | . . . . Part Schematics Acquired . | . . . . Parts Damaged . | . . . . Bothacking | -11 -10 -10 -10 ------------ Run | Yrd Mat Min Sub Used RIF Installer . | . . . . Robots Hacked 1 | . . 1 . Non-combat . | . . . . Combat 1 | . . 1 . Robot Hacks Applied 1 | . . 1 . parse_system 1 | . . 1 . Relay Couplers Released . | . . . . Fabnet Peak Effective % . | . . . . Robots Rewired . | . . . . Allies Hacked . | . . . . Hacks Repelled . | . . . . Allies | -11 -10 -10 -10 -------- Run | Yrd Mat Min Sub Total Allies 2 | . . 2 . Largest Group 2 | . . 2 1 Highest-Rated Group 43 | . . 43 31 Highest-Rated Ally 31 | . . 31 31 Total Orders . | . . . . Ally Attacks 25 | . . 23 2 Total Damage 240 | . . 198 42 Kills 3 | . . 3 . Allies Corrupted . | . . . . Allies Melted . | . . . . Intel | -11 -10 -10 -10 ------- Run | Yrd Mat Min Sub Active Infowar (turns) 368 | . . 2 366 Sensors 2 | . . 2 . Seismic 366 | . . . 366 Robot Analysis Total . | . . . . Derelict Logs Recovered 2 | . . 2 . Drone Launches . | . . . . Drone Recoveries . | . . . . Exploration | -11 -10 -10 -10 ------------- Run | Yrd Mat Min Sub Turns Passed 3144 | 88 1585 902 569 Spaces Moved 1494 | 40 742 459 253 Core 4 | 4 . . . Treads 1490 | 36 742 459 253 Legs . | . . . . Wheels . | . . . . Hover . | . . . . Flight . | . . . . Fastest Speed 50 | 50 160 160 160 Average Speed 159 | 149 160 160 160 Slowest Speed 160 | 160 160 160 160 Overloaded Moves . | . . . . Propulsion Burnouts . | . . . . Robots Hopped . | . . . . Potential Cave-ins . | . . . . Cave-ins Triggered . | . . . . Exploration Rate (%) 47 | 3 98 76 12 Regions Visited 3 Branch Regions 2 Pre-discovered Areas . | . . . . Known Exits Taken 1 | . . 1 . Unknown Exits Taken 2 | 1 1 . . Scrap Searched 7 | . . 1 6 Spaces Dug . | . . . . Terrain Destroyed . | . . . . Melee . | . . . . Projectile . | . . . . AOE . | . . . . Terrain Rammed . | . . . . Walls Destroyed . | . . . . Machines Disabled . | . . . . Actions | -11 -10 -10 -10 --------- Run | Yrd Mat Min Sub Total 2061 | 56 1003 621 381 Wait 367 | 2 128 150 87 Move 1491 | 39 741 458 253 Hop . | . . . . Pick Up 29 | 4 20 1 4 Fast Attach 15 | 6 9 . . Attach 4 | . . 1 3 Detach 2 | . 2 . . Swap 26 | . 7 4 15 Drop 25 | . 20 2 3 Fire 97 | 5 74 2 16 Melee 3 | . . 3 . Ram . | . . . . Kick . | . . . . Crush 2 | . 2 . . Escape Stasis . | . . . . Rewire . | . . . . Trap . | . . . . Miscellaneous . | . . . . Route ------- -11/Scrapyard -10/Materials (discovered 4 exits: *Mat x3 / [*Min]) -10/Mines (discovered 3 exits: Mat / Exi / *Sub) -10/Subcaves (discovered 2 exits: Mat x2) History --------- Turn | Location | Event 14 | -11/Scrapyard | Discovered new exit (range 15) 89 | -11/Scrapyard | Entered Materials 318 | -10/Materials | Destroyed 7 combat bots 338 | -10/Materials | Build established: Mutant 779 | -10/Materials | Discovered new exit (range 6) 852 | -10/Materials | Repaired Lgt. Treads 853 | -10/Materials | Learned 2 Storage zone layouts 902 | -10/Materials | Loaded intel: 15 trap records 940 | -10/Materials | Learned Storage emergency access door positions 969 | -10/Materials | Learned Storage trap positions 987 | -10/Materials | Learned 4 Subcaves zone layouts 995 | -10/Materials | Loaded intel: 7 terminal locations 1015 | -10/Materials | Learned location of 2 exits from Subcaves 1075 | -10/Materials | Discovered new exit (range 9) 1088 | -10/Materials | Learned location of 2 exits from Mines 1230 | -10/Materials | Discovered new exit (range 16) 1350 | -10/Materials | Core integrity fell below 50% 1468 | -10/Materials | Discovered new exit (range 9) 1674 | -10/Materials | Entered Mines 1675 | -10/Mines | Identified exit to Exiles 1675 | -10/Mines | Identified exit to Subcaves 1795 | -10/Mines | Learned 2 Materials zone layouts 1851 | -10/Mines | Found a damaged Exp. Sensor Array with a note attached 1859 | -10/Mines | Found Prototype Device 1869 | -10/Mines | Identified Exp. Sensor Array 1921 | -10/Mines | Identified exit to Materials 2089 | -10/Mines | Assembled infested the area 2361 | -10/Mines | Found a Scrap Suit stashed away for nefarious purposes 2402 | -10/Mines | Found a hidden stash of uninstalled traps 2576 | -10/Mines | Entered Subcaves 2576 | -10/Subcaves | Accompanied by 1 ally 2577 | -10/Subcaves | Identified exit to Materials 2581 | -10/Subcaves | Led the pair of lost Derelicts to an unsafe place 3112 | -10/Subcaves | Core integrity fell below 20% 3145 | -10/Subcaves | Destroyed by 8W-J1S(R) with Subdweller Laser Last Messages --------------- 02875_ Acquired Sub. Beam Cannon. 02881_ Searching scrap... 02881_ Found Sub. Laser. 02881_ Found Sub. Monowheel. 02881_ Found 53 Matter. 02884_ Dropped Sub. Laser. 02884_ Acquired Sub. Laser. 02885_ Searching scrap... 02885_ Found Sub. Monowheel. 02885_ Found 33 Matter. 03090_ Sub. Optics melted. 03090_ 2P-C9J(R) destroyed. 03094_ Acquired 10 matter. 03107_ Lgt. Treads destroyed. 03108_ HU-SFN(R) suffers critical hit (Burn). 03109_ System corrupted: Heat flow error (+187). 03111_ HU-SFN(R) destroyed. 03112_ Acquired 8 matter. 03114_ 8W-J1S(R): "SUB#$%&!" 03143_ Lgt. Treads destroyed. Map ----- +----------------------------------------------------+ | ??????????????????????????## ##### ##??????? | | ???????????????????????????# #### #???????? | | ???????????????????????????# # ###???????? | | ???????????????????????????# ## ####?????????? | | ???????????????????????????## ### ##???????????? | | ????????????????????????????# ## #???????????? | | ????????????????????????????# ### ##???????????? | | ???????????????????????????## ## ##???????????? | | ??????????????????????????## ### #???????????? | | ??????????????????????????# ### #???????????? | | ?????????????????????????## ### #???????????? | | ?????????????????????????# #####???????? | | ?????????????????????????# #???????? | | ?????????????????????????# #?###???? | | ?????????????????????????## # #?# ##??? | | ??????????????????????????##### ### #??? | | ??????????????????????????????# ## #??? | | ??????????????????????????????# #??? | | ??????????????????????????????# ## ##??? | | ??????????????????????????????# ######???? | | ???????#??????????????????????# # ###???? | | ???????#?????????????????????## & ##??? | | ????????????????####?????????# & #??? | | ???????????????## ##???????## ## #??? | | ???????????????# ##?###### ### #??? | | ???????????????## #?# @## #?# #??? | | ????????????##### #?# R ###?#####??? | | ???????????## ## #?# ## #?????????? | | ???????###?#" #?# ### #?????????? | | ???????" ### " ### ### #?????????? | | ???????"""" " # ## #?????????? | | ???????""""" ## ## #?????????? | | ???????"""" ### ## #????????? | | ???????""" #### ### ???????? | | ???????"""" #### ###### ### ???????? | | ???????" """ #?## ###### #?? ??????? | | ???????"" """#??## ## ?? ????????? | | ??????? """####???# ## ?? ??????????? | | ??????? "###?????## ### ## ?? ?????????????? | | ??????? "#????#### ### ### ????????????????? | | ??????? ##??### #### ### ?????????????????? | | ??????? #??## #?# ## ?????????????????? | | ??????? #??# #?## ?????????????????? | | ???????##### # ###??# ?????????????????? | | ??????? ##???## ?????????????????? | | ??????? #??### ###### ?????????????????? | | ??????? ##?# #????# ?????????????????? | | ??????? ###### #?# ###????# ?????????????????? | | ??????? ##???## #######??????##?????????????????? | | ??????? #????# ##???????????#?????????????????? | +----------------------------------------------------+ Best States ------------- Heat Dissipation 39 Energy Generation 10 Energy Capacity 250 Matter Stores 300 Matter Capacity 300 Sight Range 16 Robot Scan Range 20 Terrain Scan Density 10 Evasion (%) 40 Recoil Reduction 2 Item Schematics ----------------- Hcp. Storage Unit | -10/Materials | Hacked Robot Schematics ------------------ None Fabricated ------------ Nothing Repaired ---------- Lgt. Treads | 33% | -10/Materials Studied --------- None Alien Tech Used ----------------- None Achievements -------------- None Challenges ------------ None Game ------ Seed SeismicInertialField Manual? 0 Play Time 00:14:27 Cumulative 1607.0 hours Start 2026.02.18 @ 23:45:05 End 2026.02.18 @ 23:57:06 Sessions 1 Manual Loads 0 Difficulty Rogue Special Mode None Game No. 1153 Rogue 1113 Adventurer 40 Explorer 0 Win Type - Total 208 Types 93/11/74/2/2/4/16/2/1/3 Lore% 97 Gallery% 95 Achievement% 82 Wizard Run 0 Options --------- Layout 0 ASCII 0 Keyboard 0 Movement Numpad Keybinds 0 Fullscreen 0 Font 20/Terminus Map View 76x50 Zoom Use 0% Tactical HUD 1 Map Filters NONE Filters NONE Steam 1 RUN: 8abee199-230e-44cb-985a-55acc7a9f676